[Event "14th Chennai GM Open 2023"]
[Site "Chennai"]
[Date "2024.01.01"]
[Round "2.7"]
[White "Nitin, S.."]
[Black "Lakshmi Charan Naidu G"]
[Result "1-0"]
[ECO "B23"]
[WhiteElo "2385"]
[BlackElo "1652"]
[Annotator "RC"]
[PlyCount "67"]
[EventDate "2023.12.31"]
[EventType "swiss"]
[EventCountry "IND"]
[SourceTitle "playchess.com"]
[Source "ChessBase"]
[SourceQuality "1"]
[TimeControl "5400+30"]

1. e4 {[%emt 0:00:35]} c5 {[%emt 0:00:59]} 2. Nc3 {[%emt 0:00:15]} Nc6 {[%emt 0:00:41]} 3. Bb5 {[%emt 0:00:09]} Nd4 {[%emt 0:00:48]} 4. Nf3 {[%emt 0:00:11]} g6 {[%emt 0:03:56]} 5. Nxd4 {[%emt 0:01:17]} cxd4 {[%emt 0:00:07]} 6. Ne2 {[%emt 0:00:10]} Bg7 {[%emt 0:00:12]} 7. c3 {[%emt 0:04:26]} a6 {[%emt 0:03:39]} 8. Bc4 {[%emt 0:01:36]} Qc7 {[%emt 0:08:47]} 9. Qb3 {[%emt 0:04:50]} e6 {[%emt 0:05:12]} 10. cxd4 {[%emt 0:08:36]} b5 {[%emt 0:01:31]} 11. Bd3 {[%emt 0:00:15]} Bb7 {[%emt 0:00:11]} 12. a4 {[%emt 0:01:42]} f5 {[%emt 0:03:49]} 13. axb5 {[%emt 0:11:14]} fxe4 {[%emt 0:03:35]} 14. bxa6 {[%emt 0:01:57]} Bd5 {[%emt 0:02:57]} 15. Qc2 {[%emt 0:00:17]} Qxc2 {[%emt 0:04:50]} 16. Bxc2 {[%emt 0:00:17]} Bc4 {[%emt 0:00:17]} 17. Ra4 {[%emt 0:33:50]} d5 {[%emt 0:17:40]} 18. Nf4 {[%emt 0:00:18]} Kf7 {[%emt 0:09:14]} 19. d3 {[%emt 0:01:12]} Bb5 {[%emt 0:07:37]} 20. Ra5 {[%emt 0:00:40]} Bxa6 {[%emt 0:00:32]} 21. dxe4 {[%emt 0:00:26]} Ne7 {[%emt 0:01:39]} 22. Be3 {[%emt 0:06:02]} Rhc8 {[%emt 0:00:31]} 23. Kd2 {[%emt 0:01:11]} Nc6 {[%emt 0:02:29]} 24. Ra4 {[%emt 0:00:28]} e5 {[%emt 0:01:21]} 25. Nxd5 {[%emt 0:02:55]} exd4 {[%emt 0:00:56]} 26. Bf4 {[%emt 0:00:10]} d3 {[%emt 0:07:19]} 27. Bxd3 {[%emt 0:03:10]} Bxd3 {[%emt 0:01:31]} 28. Rxa8 {[%emt 0:00:05]} Rxa8 {[%emt 0:00:16]} 29. Kxd3 {[%emt 0:00:03]} Bxb2 {[%emt 0:00:13]} 30. Rb1 {[%emt 0:00:15]} Ra3+ {[%emt 0:00:41]} 31. Kc4 {[%emt 0:02:03]} Ba1 {[%emt 0:03:10]} 32. Rb7+ {[%emt 0:00:43]} Ke6 {[%emt 0:00:38]} 33. Nc7+ {[%emt 0:01:44]} Kf6 {[%emt 0:00:08]} 34. Rb6 {[%emt 0:00:32]} 1-0

[Event "14th Chennai GM Open 2023"]
[Site "Chennai"]
[Date "2024.01.01"]
[Round "2.8"]
[White "Vengatesh Krishnan C"]
[Black "Tologon tegin, Semetei"]
[Result "0-1"]
[ECO "A36"]
[WhiteElo "1664"]
[BlackElo "2384"]
[Annotator "RC"]
[PlyCount "86"]
[EventDate "2023.12.31"]
[EventType "swiss"]
[EventCountry "IND"]
[SourceTitle "playchess.com"]
[Source "ChessBase"]
[SourceQuality "1"]
[TimeControl "5400+30"]

1. c4 {[%emt 0:00:05]} g6 {[%emt 0:07:19]} 2. Nc3 {[%emt 0:00:12]} Bg7 {[%emt 0:00:04]} 3. g3 {[%emt 0:00:07]} c5 {[%emt 0:00:19]} 4. Bg2 {[%emt 0:00:18]} Nc6 {[%emt 0:00:04]} 5. d3 {[%emt 0:01:22]} e6 {[%emt 0:00:56]} 6. e4 {[%emt 0:01:48]} Nge7 {[%emt 0:00:27]} 7. Nge2 {[%emt 0:00:16]} d6 {[%emt 0:00:58]} 8. h3 {[%emt 0:00:41]} a6 {[%emt 0:00:39]} 9. Be3 {[%emt 0:12:42]} Nd4 {[%emt 0:04:47]} 10. O-O {[%emt 0:08:26]} O-O {[%emt 0:03:16]} 11. f4 {[%emt 0:07:14]} f5 {[%emt 0:07:55]} 12. Rc1 {[%emt 0:10:17]} Rb8 {[%emt 0:02:28]} 13. Kh2 {[%emt 0:10:44]} Bd7 {[%emt 0:16:33]} 14. b3 {[%emt 0:20:00]} Nec6 {[%emt 0:04:06]} 15. Bd2 {[%emt 0:13:58]} b5 {[%emt 0:04:21]} 16. Nxd4 {[%emt 0:01:12]} Nxd4 {[%emt 0:05:47]} 17. Ne2 {[%emt 0:00:41]} bxc4 {[%emt 0:01:01]} 18. dxc4 {[%emt 0:05:03]} Bc6 {[%emt 0:12:26]} 19. Nxd4 {[%emt 0:00:48]} Bxd4 {[%emt 0:00:07]} 20. Qe2 {[%emt 0:00:17]} Qd7 {[%emt 0:00:22]} 21. exf5 {[%emt 0:03:16]} Bxg2 {[%emt 0:00:10]} 22. Kxg2 {[%emt 0:01:17]} gxf5 {[%emt 0:03:47]} 23. Rce1 {[%emt 0:00:25]} e5 {[%emt 0:00:58]} 24. Qf3 {[%emt 0:00:37]} e4 {[%emt 0:05:50]} 25. Qe2 {[%emt 0:00:36]} a5 {[%emt 0:12:26]} 26. Bxa5 {[%emt 0:00:35]} Qa7 {[%emt 0:00:05]} 27. Bd2 {[%emt 0:00:31]} Qxa2 {[%emt 0:00:05]} 28. g4 {[%emt 0:00:29]} Rxb3 {[%emt 0:00:17]} 29. Bc1 {[%emt 0:00:32]} Qa8 {[%emt 0:03:16]} 30. gxf5 {[%emt 0:00:16]} Kh8 {[%emt 0:00:03]} 31. Qxe4 {[%emt 0:00:44]} Rg8+ {[%emt 0:00:10]} 32. Kh2 {[%emt 0:00:02]} Qxe4 {[%emt 0:03:04]} 33. Rxe4 {[%emt 0:00:01]} Rgg3 {[%emt 0:00:01]} 34. Rfe1 {[%emt 0:00:45]} Rxh3+ {[%emt 0:00:04]} 35. Kg2 {[%emt 0:00:02]} Rbg3+ {[%emt 0:00:01]} 36. Kf1 {[%emt 0:00:10]} Rh1+ {[%emt 0:00:49]} 37. Ke2 {[%emt 0:00:05]} Rh2+ {[%emt 0:00:11]} 38. Kd1 {[%emt 0:00:50]} Rd3+ {[%emt 0:00:05]} 39. Bd2 {[%emt 0:00:04]} Rdxd2+ {[%emt 0:00:08]} 40. Kc1 {[%emt 0:00:07]} Rc2+ {[%emt 0:00:19]} 41. Kb1 {[%emt 0:00:08]} Rb2+ {[%emt 0:00:24]} 42. Kc1 {[%emt 0:00:14]} Ra2 {[%emt 0:01:39]} 43. Re8+ {[%emt 0:00:51]} Kg7 {[%emt 0:00:03]} 0-1

[Event "14th Chennai GM Open 2023"]
[Site "Chennai"]
[Date "2024.01.01"]
[Round "2.9"]
[White "Podolchenko, Evgeniy"]
[Black "Naga Sai Sarthak Karanam"]
[Result "1-0"]
[ECO "D46"]
[WhiteElo "2376"]
[BlackElo "1646"]
[Annotator "RC"]
[PlyCount "75"]
[EventDate "2023.12.31"]
[EventType "swiss"]
[EventCountry "IND"]
[SourceTitle "playchess.com"]
[Source "ChessBase"]
[SourceQuality "1"]
[TimeControl "5400+30"]

1. d4 {[%emt 0:05:59]} d5 {[%emt 1:31:00]} 2. c4 {[%emt 0:00:02]} c6 {[%emt 0:00:00]} 3. Nc3 {[%emt 0:00:06]} e6 {[%emt 0:00:00]} 4. e3 {[%emt 0:00:08]} Nf6 {[%emt 0:00:00]} 5. Nf3 {[%emt 0:00:03]} Nbd7 {[%emt 0:00:00]} 6. Qc2 {[%emt 0:00:08]} b6 {[%emt 0:00:00]} 7. b3 {[%emt 0:00:06]} Bb7 {[%emt 0:00:00]} 8. Bb2 {[%emt 0:00:06]} Be7 {[%emt 0:00:00]} 9. Bd3 {[%emt 0:00:08]} Rc8 {[%emt 0:00:00]} 10. O-O {[%emt 0:01:47]} O-O {[%emt 0:00:00]} 11. Rfe1 {[%emt 0:01:28]} Qc7 {[%emt 0:00:00]} 12. e4 {[%emt 0:03:22]} dxe4 {[%emt 0:00:00]} 13. Nxe4 {[%emt 0:00:13]} h6 {[%emt 0:00:00]} 14. c5 {[%emt 0:09:13]} Nxe4 {[%emt 0:00:00]} 15. Rxe4 {[%emt 0:02:00]} Nf6 {[%emt 0:00:00]} 16. Ree1 {[%emt 0:02:38]} bxc5 {[%emt 0:00:00]} 17. dxc5 {[%emt 0:03:46]} Qa5 {[%emt 0:00:00]} 18. b4 {[%emt 0:00:42]} Qc7 {[%emt 0:00:00]} 19. Be5 {[%emt 0:01:08]} Qd7 {[%emt 0:00:00]} 20. Rad1 {[%emt 0:00:09]} Nd5 {[%emt 0:00:00]} 21. Re4 {[%emt 0:05:47]} f6 {[%emt 0:00:00]} 22. Rg4 {[%emt 0:03:45]} Kh8 {[%emt 0:00:00]} 23. Nh4 {[%emt 0:03:36]} g5 {[%emt 0:00:00]} 24. Ng6+ {[%emt 0:01:28]} Kg8 {[%emt 0:00:00]} 25. Nxf8 {[%emt 0:00:12]} Bxf8 {[%emt 0:00:00]} 26. Bb2 {[%emt 0:01:33]} f5 {[%emt 0:00:00]} 27. Rg3 {[%emt 0:04:50]} Nxb4 {[%emt 0:00:00]} 28. Qc3 {[%emt 0:00:12]} Nd5 {[%emt 0:00:00]} 29. Qh8+ {[%emt 0:00:13]} Kf7 {[%emt 0:00:00]} 30. Bxf5 {[%emt 0:00:19]} exf5 {[%emt 0:00:00]} 31. Re1 {[%emt 0:00:02]} Ne7 {[%emt 0:00:00]} 32. Rge3 {[%emt 0:03:13]} f4 {[%emt 0:00:00]} 33. Qh7+ {[%emt 0:00:35]} Ke8 {[%emt 0:00:00]} 34. Qg6+ {[%emt 0:01:30]} Kd8 {[%emt 0:00:00]} 35. Qf7 {[%emt 0:00:25]} fxe3 {[%emt 0:00:00]} 36. Qxf8+ {[%emt 0:00:24]} Qe8 {[%emt 0:00:00]} 37. Rd1+ {[%emt 0:00:14]} Nd5 {[%emt 0:00:00]} 38. Bf6+ {[%emt 0:00:08]} 1-0

[Event "14th Chennai GM Open 2023"]
[Site "Chennai"]
[Date "2024.01.01"]
[Round "2.10"]
[White "Gorli Nyna"]
[Black "Shahil Dey"]
[Result "0-1"]
[ECO "C54"]
[WhiteElo "1652"]
[BlackElo "2368"]
[Annotator "RC"]
[PlyCount "68"]
[EventDate "2023.12.31"]
[EventType "swiss"]
[EventCountry "IND"]
[SourceTitle "playchess.com"]
[Source "ChessBase"]
[SourceQuality "1"]
[TimeControl "5400+30"]

1. e4 {[%emt 0:00:03]} e5 {[%emt 0:00:04]} 2. Nf3 {[%emt 0:00:12]} Nc6 {[%emt 0:00:06]} 3. Bc4 {[%emt 0:00:04]} Bc5 {[%emt 0:00:05]} 4. c3 {[%emt 0:00:08]} Nf6 {[%emt 0:00:04]} 5. d3 {[%emt 0:00:04]} a5 {[%emt 0:00:04]} 6. a4 {[%emt 0:00:15]} d6 {[%emt 0:00:51]} 7. O-O {[%emt 0:00:14]} O-O {[%emt 0:00:11]} 8. h3 {[%emt 0:00:04]} Be6 {[%emt 0:00:55]} 9. Bxe6 {[%emt 0:04:07]} fxe6 {[%emt 0:00:05]} 10. d4 {[%emt 0:00:36]} exd4 {[%emt 0:00:51]} 11. cxd4 {[%emt 0:00:15]} Bb6 {[%emt 0:01:02]} 12. Nc3 {[%emt 0:01:56]} h6 {[%emt 0:07:28]} 13. Re1 {[%emt 0:03:06]} d5 {[%emt 0:04:33]} 14. exd5 {[%emt 0:07:28]} exd5 {[%emt 0:01:03]} 15. Qd3 {[%emt 0:01:27]} Qd6 {[%emt 0:05:11]} 16. Be3 {[%emt 0:12:18]} Rae8 {[%emt 0:01:11]} 17. Qg6 {[%emt 0:02:08]} Ne7 {[%emt 0:03:36]} 18. Qd3 {[%emt 0:00:39]} Nh5 {[%emt 0:05:30]} 19. Ne5 {[%emt 0:12:40]} c6 {[%emt 0:01:20]} 20. Qd1 {[%emt 0:02:36]} Nf4 {[%emt 0:03:53]} 21. Qg4 {[%emt 0:00:38]} Ne6 {[%emt 0:02:42]} 22. Ne4 {[%emt 0:13:30]} dxe4 {[%emt 0:01:14]} 23. Nc4 {[%emt 0:02:08]} h5 {[%emt 0:00:46]} 24. Qd1 {[%emt 0:09:29]} Qb4 {[%emt 0:06:52]} 25. Nxb6 {[%emt 0:00:09]} Rd8 {[%emt 0:00:06]} 26. d5 {[%emt 0:01:26]} cxd5 {[%emt 0:00:26]} 27. Qxh5 {[%emt 0:02:49]} Nf5 {[%emt 0:03:18]} 28. Qg4 {[%emt 0:05:13]} d4 {[%emt 0:01:56]} 29. Qxe4 {[%emt 0:02:29]} Nc5 {[%emt 0:01:28]} 30. Qe5 {[%emt 0:01:07]} dxe3 {[%emt 0:00:20]} 31. Nd5 {[%emt 0:00:38]} exf2+ {[%emt 0:00:06]} 32. Kxf2 {[%emt 0:00:03]} Nd3+ {[%emt 0:00:28]} 33. Kg1 {[%emt 0:00:07]} Qc5+ {[%emt 0:00:04]} 34. Kh1 {[%emt 0:00:08]} Nxe5 {[%emt 0:00:05]} 0-1

[Event "14th Chennai GM Open 2023"]
[Site "Chennai"]
[Date "2024.01.01"]
[Round "2.11"]
[White "Khusenkhojaev, Muhammad"]
[Black "Aadithya Pradeep"]
[Result "1-0"]
[ECO "D76"]
[WhiteElo "2366"]
[BlackElo "1644"]
[Annotator "RC"]
[PlyCount "119"]
[EventDate "2023.12.31"]
[EventType "swiss"]
[EventCountry "IND"]
[SourceTitle "playchess.com"]
[Source "ChessBase"]
[SourceQuality "1"]
[TimeControl "5400+30"]

1. d4 {[%emt 0:02:06]} Nf6 {[%emt 0:00:06]} 2. c4 {[%emt 0:00:05]} g6 {[%emt 0:00:07]} 3. g3 {[%emt 0:00:17]} Bg7 {[%emt 0:00:05]} 4. Bg2 {[%emt 0:00:03]} d5 {[%emt 0:00:07]} 5. cxd5 {[%emt 0:00:15]} Nxd5 {[%emt 0:00:07]} 6. Nf3 {[%emt 0:00:04]} O-O {[%emt 0:00:09]} 7. O-O {[%emt 0:00:05]} Nb6 {[%emt 0:00:09]} 8. Nc3 {[%emt 0:00:08]} Nc6 {[%emt 0:00:05]} 9. e3 {[%emt 0:00:06]} Re8 {[%emt 0:00:07]} 10. Re1 {[%emt 0:01:03]} a5 {[%emt 0:00:15]} 11. Rb1 {[%emt 0:02:23]} e5 {[%emt 0:01:39]} 12. d5 {[%emt 1:29:55]} Nb4 {[%emt 0:00:59]} 13. e4 {[%emt 0:00:00]} c6 {[%emt 0:01:56]} 14. a3 {[%emt 0:00:00]} Na6 {[%emt 0:00:46]} 15. dxc6 {[%emt 0:00:00]} bxc6 {[%emt 0:00:39]} 16. Qc2 {[%emt 0:00:00]} Be6 {[%emt 0:13:21]} 17. Ng5 {[%emt 0:00:00]} Bg4 {[%emt 0:10:31]} 18. h3 {[%emt 0:00:00]} Bc8 {[%emt 0:03:55]} 19. Qb3 {[%emt 0:00:00]} Rf8 {[%emt 0:02:58]} 20. Rd1 {[%emt 0:00:00]} Qc7 {[%emt 0:04:24]} 21. Be3 {[%emt 0:00:00]} Rb8 {[%emt 0:00:49]} 22. Rbc1 {[%emt 0:00:00]} Bf6 {[%emt 0:14:03]} 23. Nb5 {[%emt 0:00:00]} Qe7 {[%emt 0:01:28]} 24. Rxc6 {[%emt 0:00:00]} Nd7 {[%emt 0:15:55]} 25. h4 {[%emt 0:00:00]} Nac5 {[%emt 0:22:05]} 26. Qc4 {[%emt 0:00:00]} h6 {[%emt 0:01:28]} 27. Rc7 {[%emt 0:00:00]} Na6 {[%emt 0:01:13]} 28. Rc6 {[%emt 0:00:00]} hxg5 {[%emt 0:01:01]} 29. hxg5 {[%emt 0:00:00]} Bg7 {[%emt 0:00:18]} 30. Nd6 {[%emt 0:00:00]} Nac5 {[%emt 0:03:15]} 31. Nxc8 {[%emt 0:00:00]} Rfxc8 {[%emt 0:00:20]} 32. Rxc8+ {[%emt 0:00:00]} Rxc8 {[%emt 0:00:03]} 33. b4 {[%emt 0:00:00]} axb4 {[%emt 0:00:17]} 34. axb4 {[%emt 0:00:00]} Qe6 {[%emt 0:01:00]} 35. Qxe6 {[%emt 0:00:00]} Nxe6 {[%emt 0:00:02]} 36. Rxd7 {[%emt 0:00:00]} Rb8 {[%emt 0:00:09]} 37. Bd2 {[%emt 0:00:00]} Nd4 {[%emt 0:01:34]} 38. Rd5 {[%emt 0:00:00]} Bf8 {[%emt 0:01:23]} 39. Rxe5 {[%emt 0:00:00]} Bxb4 {[%emt 0:00:10]} 40. Be3 {[%emt 0:00:00]} Ne6 {[%emt 0:00:19]} 41. Bh3 {[%emt 0:00:00]} Nf8 {[%emt 0:00:44]} 42. Kg2 {[%emt 0:00:00]} Bd6 {[%emt 0:00:35]} 43. Ra5 {[%emt 0:00:00]} Re8 {[%emt 0:00:28]} 44. f3 {[%emt 0:00:00]} Rb8 {[%emt 0:00:09]} 45. Ra2 {[%emt 0:00:00]} Be7 {[%emt 0:00:35]} 46. f4 {[%emt 0:00:00]} Rb4 {[%emt 0:00:11]} 47. Kf3 {[%emt 0:00:00]} Nh7 {[%emt 0:00:32]} 48. Rc2 {[%emt 0:00:00]} Rb3 {[%emt 0:00:40]} 49. Ke2 {[%emt 0:00:00]} Nf8 {[%emt 0:00:48]} 50. Rc7 {[%emt 0:00:00]} Bd8 {[%emt 0:00:28]} 51. Rc6 {[%emt 0:00:00]} Be7 {[%emt 0:00:27]} 52. e5 {[%emt 0:00:00]} Rb2+ {[%emt 0:00:21]} 53. Kf3 {[%emt 0:00:00]} Rb3 {[%emt 0:00:38]} 54. Ke4 {[%emt 0:00:00]} Rb4+ {[%emt 0:00:32]} 55. Bd4 {[%emt 0:00:00]} Ra4 {[%emt 0:00:31]} 56. Bg4 {[%emt 0:00:00]} Ra3 {[%emt 0:00:13]} 57. Rc3 {[%emt 0:00:00]} Ra6 {[%emt 0:00:51]} 58. Rc7 {[%emt 0:00:00]} Bb4 {[%emt 0:00:48]} 59. Rb7 {[%emt 0:00:00]} Ra4 {[%emt 0:00:26]} 60. Bd1 {[%emt 0:00:00]} 1-0

[Event "14th Chennai GM Open 2023"]
[Site "Chennai"]
[Date "2024.01.01"]
[Round "2.12"]
[White "Manish Anto Cristiano F"]
[Black "Kashthuri Bhai R"]
[Result "1-0"]
[ECO "C72"]
[WhiteElo "2349"]
[BlackElo "1639"]
[Annotator "RC"]
[PlyCount "115"]
[EventDate "2023.12.31"]
[EventType "swiss"]
[EventCountry "IND"]
[SourceTitle "playchess.com"]
[Source "ChessBase"]
[SourceQuality "1"]
[TimeControl "5400+30"]

1. e4 {[%emt 0:00:08]} e5 {[%emt 0:00:06]} 2. Nf3 {[%emt 0:00:08]} Nc6 {[%emt 0:00:03]} 3. Bb5 {[%emt 0:00:13]} a6 {[%emt 0:00:08]} 4. Ba4 {[%emt 0:00:11]} d6 {[%emt 0:00:03]} 5. c4 {[%emt 0:01:48]} Bd7 {[%emt 0:03:55]} 6. Nc3 {[%emt 0:00:14]} Nf6 {[%emt 0:00:37]} 7. O-O {[%emt 0:00:53]} Be7 {[%emt 0:00:31]} 8. Re1 {[%emt 0:02:42]} O-O {[%emt 0:05:25]} 9. Bxc6 {[%emt 0:00:29]} bxc6 {[%emt 0:00:27]} 10. d4 {[%emt 0:00:12]} exd4 {[%emt 0:00:31]} 11. Nxd4 {[%emt 0:00:09]} c5 {[%emt 0:02:04]} 12. Nf5 {[%emt 0:00:30]} Bxf5 {[%emt 0:00:41]} 13. exf5 {[%emt 0:00:07]} Nd7 {[%emt 0:00:29]} 14. Bf4 {[%emt 0:07:33]} Bf6 {[%emt 0:01:18]} 15. Qc2 {[%emt 0:01:06]} Ne5 {[%emt 0:07:13]} 16. Nd5 {[%emt 0:00:54]} Nc6 {[%emt 0:01:53]} 17. Rad1 {[%emt 0:04:05]} Nd4 {[%emt 0:05:38]} 18. Qd3 {[%emt 0:02:57]} Kh8 {[%emt 0:12:31]} 19. b4 {[%emt 0:14:24]} c6 {[%emt 0:18:54]} 20. Nxf6 {[%emt 0:02:10]} Qxf6 {[%emt 0:01:01]} 21. bxc5 {[%emt 0:01:08]} dxc5 {[%emt 0:00:55]} 22. Be5 {[%emt 0:06:27]} Qxf5 {[%emt 0:06:30]} 23. Bxd4 {[%emt 0:01:54]} Qxd3 {[%emt 0:00:53]} 24. Bxg7+ {[%emt 0:00:39]} Kxg7 {[%emt 0:00:02]} 25. Rxd3 {[%emt 0:00:10]} Rad8 {[%emt 0:02:54]} 26. Rg3+ {[%emt 0:02:38]} Kf6 {[%emt 0:00:46]} 27. Rf3+ {[%emt 0:04:13]} Kg6 {[%emt 0:00:27]} 28. g3 {[%emt 0:08:17]} Rfe8 {[%emt 0:10:31]} 29. Rb1 {[%emt 0:08:38]} Rd4 {[%emt 0:02:19]} 30. Rb7 {[%emt 0:02:23]} f6 {[%emt 0:00:44]} 31. Rb6 {[%emt 0:00:16]} Re6 {[%emt 0:00:26]} 32. Rc3 {[%emt 0:00:41]} a5 {[%emt 0:00:59]} 33. Ra6 {[%emt 0:00:12]} Rd2 {[%emt 0:04:38]} 34. Rxa5 {[%emt 0:00:57]} Ree2 {[%emt 0:00:31]} 35. Rf3 {[%emt 0:00:33]} Rxa2 {[%emt 0:00:57]} 36. Rxc5 {[%emt 0:00:07]} Re6 {[%emt 0:00:12]} 37. g4 {[%emt 0:03:34]} Rd2 {[%emt 0:02:13]} 38. Rf4 {[%emt 0:00:14]} Rd3 {[%emt 0:02:42]} 39. Kg2 {[%emt 0:00:28]} Rd2 {[%emt 0:00:43]} 40. h4 {[%emt 0:01:33]} Rd3 {[%emt 0:01:20]} 41. Rcf5 {[%emt 0:01:50]} Rdd6 {[%emt 0:01:36]} 42. c5 {[%emt 0:04:48]} Rd1 {[%emt 0:01:58]} 43. Ra4 {[%emt 0:19:27]} Rd7 {[%emt 0:00:55]} 44. Ra8 {[%emt 0:00:00]} Rd4 {[%emt 0:01:26]} 45. h5+ {[%emt 0:00:00]} Kh6 {[%emt 0:00:19]} 46. Rg8 {[%emt 0:00:00]} Rd3 {[%emt 0:00:38]} 47. f3 {[%emt 0:00:00]} Rd7 {[%emt 0:00:47]} 48. Kg3 {[%emt 0:00:00]} Rd5 {[%emt 0:01:00]} 49. Rxd5 {[%emt 0:00:00]} cxd5 {[%emt 0:00:02]} 50. Rd8 {[%emt 0:00:00]} Rc6 {[%emt 0:01:40]} 51. Rxd5 {[%emt 0:00:00]} Kg7 {[%emt 0:00:09]} 52. Kf4 {[%emt 0:00:00]} Kf7 {[%emt 0:01:07]} 53. Rd7+ {[%emt 0:00:00]} Ke6 {[%emt 0:00:09]} 54. Rxh7 {[%emt 0:00:00]} Rxc5 {[%emt 0:00:05]} 55. Rg7 {[%emt 0:00:00]} Rc8 {[%emt 0:00:12]} 56. h6 {[%emt 0:00:00]} Rh8 {[%emt 0:00:04]} 57. h7 {[%emt 0:00:00]} Kd6 {[%emt 0:00:11]} 58. Ke4 {[%emt 0:00:00]} 1-0

[Event "14th Chennai GM Open 2023"]
[Site "Chennai"]
[Date "2024.01.01"]
[Round "2.13"]
[White "Aarav A"]
[Black "Ravichandran, Siddharth"]
[Result "1/2-1/2"]
[ECO "B22"]
[WhiteElo "1649"]
[BlackElo "2348"]
[Annotator "RC"]
[PlyCount "80"]
[EventDate "2023.12.31"]
[EventType "swiss"]
[EventCountry "IND"]
[SourceTitle "playchess.com"]
[Source "ChessBase"]
[SourceQuality "1"]
[TimeControl "5400+30"]

1. e4 {[%emt 0:00:03]} c5 {[%emt 0:00:14]} 2. c3 {[%emt 0:00:08]} d5 {[%emt 0:00:12]} 3. exd5 {[%emt 0:00:11]} Qxd5 {[%emt 0:00:06]} 4. d4 {[%emt 0:00:07]} Nc6 {[%emt 0:00:08]} 5. Nf3 {[%emt 0:00:07]} Bf5 {[%emt 0:00:08]} 6. Be3 {[%emt 0:00:07]} Nf6 {[%emt 0:00:13]} 7. Bb5 {[%emt 0:02:13]} cxd4 {[%emt 0:12:09]} 8. c4 {[%emt 0:00:08]} Qd6 {[%emt 0:17:04]} 9. Qxd4 {[%emt 0:00:25]} e6 {[%emt 0:14:55]} 10. Qxd6 {[%emt 0:15:33]} Bxd6 {[%emt 0:00:06]} 11. Nd4 {[%emt 0:01:57]} O-O {[%emt 0:01:44]} 12. Bxc6 {[%emt 0:00:45]} bxc6 {[%emt 0:00:17]} 13. Nxf5 {[%emt 0:00:03]} exf5 {[%emt 0:00:09]} 14. Nc3 {[%emt 0:00:05]} Ng4 {[%emt 0:10:40]} 15. g3 {[%emt 0:03:54]} Bb4 {[%emt 0:06:36]} 16. O-O-O {[%emt 0:02:20]} Nxe3 {[%emt 0:01:08]} 17. fxe3 {[%emt 0:00:02]} Bxc3 {[%emt 0:00:12]} 18. bxc3 {[%emt 0:00:05]} Rfe8 {[%emt 0:00:42]} 19. Rhe1 {[%emt 0:00:15]} Re6 {[%emt 0:11:23]} 20. Rd7 {[%emt 0:01:20]} h5 {[%emt 0:01:16]} 21. Kd2 {[%emt 0:01:34]} Rb8 {[%emt 0:00:26]} 22. Kc2 {[%emt 0:00:10]} c5 {[%emt 0:06:02]} 23. Re2 {[%emt 0:05:04]} Ra6 {[%emt 0:07:02]} 24. Kd3 {[%emt 0:00:10]} g6 {[%emt 0:00:07]} 25. Rd5 {[%emt 0:00:33]} Ra5 {[%emt 0:00:12]} 26. Rd2 {[%emt 0:02:33]} Rb1 {[%emt 0:02:40]} 27. e4 {[%emt 0:01:10]} fxe4+ {[%emt 0:00:24]} 28. Kxe4 {[%emt 0:00:02]} Re1+ {[%emt 0:00:13]} 29. Kd3 {[%emt 0:00:32]} Kg7 {[%emt 0:00:07]} 30. Rf2 {[%emt 0:01:10]} Rc1 {[%emt 0:00:29]} 31. a4 {[%emt 0:11:35]} Rd1+ {[%emt 0:01:59]} 32. Ke3 {[%emt 0:01:03]} Re1+ {[%emt 0:00:25]} 33. Kd2 {[%emt 0:00:25]} Ra1 {[%emt 0:04:47]} 34. Kd3 {[%emt 0:00:20]} Rd1+ {[%emt 0:01:56]} 35. Ke3 {[%emt 0:00:09]} Re1+ {[%emt 0:01:10]} 36. Kd2 {[%emt 0:00:02]} Re7 {[%emt 0:00:27]} 37. Kd3 {[%emt 0:00:19]} Re1 {[%emt 0:00:40]} 38. Kd2 {[%emt 0:00:03]} Re7 {[%emt 0:00:15]} 39. Kd3 {[%emt 0:00:28]} Re1 {[%emt 0:00:44]} 40. Kd2 {[%emt 0:00:23]} Re7 {[%emt 0:00:28]} 1/2-1/2

[Event "14th Chennai GM Open 2023"]
[Site "Chennai"]
[Date "2024.01.01"]
[Round "2.14"]
[White "Manik, Mikulas"]
[Black "Pranav Sai Ram R S"]
[Result "1-0"]
[ECO "B10"]
[WhiteElo "2343"]
[BlackElo "1633"]
[Annotator "RC"]
[PlyCount "85"]
[EventDate "2023.12.31"]
[EventType "swiss"]
[EventCountry "IND"]
[SourceTitle "playchess.com"]
[Source "ChessBase"]
[SourceQuality "1"]
[TimeControl "5400+30"]

1. e4 {[%emt 0:00:03]} c6 {[%emt 0:00:21]} 2. Nf3 {[%emt 0:00:07]} d5 {[%emt 0:00:32]} 3. d3 {[%emt 0:00:03]} dxe4 {[%emt 0:00:55]} 4. dxe4 {[%emt 0:00:02]} Qxd1+ {[%emt 0:01:06]} 5. Kxd1 {[%emt 0:00:03]} Nf6 {[%emt 0:00:48]} 6. Nfd2 {[%emt 0:01:11]} g5 {[%emt 0:01:03]} 7. f3 {[%emt 0:00:24]} g4 {[%emt 0:04:22]} 8. Nc3 {[%emt 0:00:38]} gxf3 {[%emt 0:02:30]} 9. gxf3 {[%emt 0:00:03]} Bh6 {[%emt 0:06:12]} 10. Nc4 {[%emt 0:00:27]} Bxc1 {[%emt 0:05:15]} 11. Rxc1 {[%emt 0:00:02]} Nh5 {[%emt 0:04:24]} 12. Rg1 {[%emt 0:00:40]} Be6 {[%emt 0:04:44]} 13. Kd2 {[%emt 0:04:58]} Nd7 {[%emt 0:08:19]} 14. Ke3 {[%emt 0:00:31]} Bxc4 {[%emt 0:19:22]} 15. Bxc4 {[%emt 0:00:03]} e6 {[%emt 0:07:17]} 16. f4 {[%emt 0:02:59]} Nhf6 {[%emt 0:02:41]} 17. e5 {[%emt 0:00:12]} Nd5+ {[%emt 0:01:36]} 18. Nxd5 {[%emt 0:02:09]} cxd5 {[%emt 0:01:29]} 19. Bd3 {[%emt 0:00:05]} Ke7 {[%emt 0:04:00]} 20. c4 {[%emt 0:01:20]} dxc4 {[%emt 0:02:48]} 21. Rxc4 {[%emt 0:00:03]} Rac8 {[%emt 0:04:50]} 22. Rgc1 {[%emt 0:02:01]} Rxc4 {[%emt 0:03:53]} 23. Rxc4 {[%emt 0:00:02]} Kd8 {[%emt 0:00:53]} 24. Be4 {[%emt 0:00:07]} Nb6 {[%emt 0:02:12]} 25. Rc2 {[%emt 0:00:17]} h5 {[%emt 0:02:38]} 26. Bxb7 {[%emt 0:00:26]} Rh7 {[%emt 0:00:34]} 27. b3 {[%emt 0:04:23]} Rg7 {[%emt 0:02:47]} 28. a4 {[%emt 0:00:10]} Rg1 {[%emt 0:01:56]} 29. a5 {[%emt 0:00:10]} Nd7 {[%emt 0:00:04]} 30. Rc8+ {[%emt 0:00:12]} Ke7 {[%emt 0:00:02]} 31. Bc6 {[%emt 0:00:11]} Rb1 {[%emt 0:01:53]} 32. Ba4 {[%emt 0:00:05]} Rd1 {[%emt 0:02:21]} 33. Rc7 {[%emt 0:00:25]} a6 {[%emt 0:00:39]} 34. b4 {[%emt 0:01:03]} Kd8 {[%emt 0:00:47]} 35. Rxd7+ {[%emt 0:00:15]} Rxd7 {[%emt 0:00:15]} 36. Bxd7 {[%emt 0:00:02]} Kxd7 {[%emt 0:00:02]} 37. Kd4 {[%emt 0:00:07]} Kc6 {[%emt 0:00:18]} 38. Kc4 {[%emt 0:00:02]} Kb7 {[%emt 0:00:35]} 39. b5 {[%emt 0:00:02]} Kc7 {[%emt 0:00:43]} 40. bxa6 {[%emt 0:00:19]} Kc6 {[%emt 0:00:13]} 41. h4 {[%emt 0:00:05]} Kc7 {[%emt 0:00:21]} 42. Kc5 {[%emt 0:00:01]} Kc8 {[%emt 0:00:12]} 43. Kd6 {[%emt 0:00:13]} 1-0